Cogmind - Beta 17 @@@ ROGUE MODE // 2026.07.09 @ 23:33:13 Player: beans Result: Destroyed by G-50 Soldier with Heavy Laser Performance ------------- Evolutions (5) 2500 Regions Visited (12) 2400 Robots Destroyed (105) 525 Value Destroyed (6602) 6602 Prototype IDs (5) 100 Alien Tech Used (0) 0 Bonus (4192) 4192 TOTAL SCORE: 16319 Bonus ------- High Alert Combat Kills 340 Follower Combat Kills 1252 Entered Garrisons 600 Used RIF Installer 1500 Entered DSFs 500 Cogmind --------- Core Integrity 0/1000 Matter 197/300 Energy 98/100 System Corruption 31% Temperature Cool (9) Movement Core (50) Location -5/Garrison Parts ------- > --- POWER (2) -------- (None) > --- PROPULSION (6) --- (None) > --- UTILITY (6) ------ Enhanced Optical Array Authchip [R/Combat] Authchip [R/Combat] > --- WEAPON (3) ------- (None) > --- INVENTORY (5) ---- Quantum Capacitor Quantum Rifle Remote Datajack Improved Remote Datajack Peak State ------------ > --- POWER ------------ Light Particle Reactor Light Particle Reactor > --- PROPULSION ------- Improved Heavy Treads Improved Heavy Treads Biometal Medium Treads > --- UTILITY ---------- Cargo Storage Unit Enhanced Optical Array Improved Targeting Computer Relay Coupler [Sentry] Relay Coupler [Hunter] > --- WEAPON ----------- KE Penetrator KE Penetrator KE Penetrator > --- INVENTORY -------- Light Particle Reactor Flexi-carbon Leg Flexi-carbon Leg Biometal Leg High-capacity Matter Pod Quantum Capacitor Authchip [R/Combat] Authchip [R/Combat] Authchip [R/Combat] Authchip [R/Combat] Relay Coupler [NC] Relay Coupler [NC] Relay Coupler [NC] Relay Coupler [Swarmer] Relay Coupler [Grunt] Relay Coupler [Sentry] Quantum Rifle Nova Cannon Gauss Rifle Gauss Rifle Gauss Rifle Hypervelocity Mass Driver Linear Accelerator Remote Datajack Remote Datajack Improved Remote Datajack Improved Remote Datajack [Rating: 101] Favorites ----------- Power Micro Fission Core Engine Deuterium Engine Power Core Micro Fission Core Reactor Light Particle Reactor Propulsion Improved Heavy Treads Treads Improved Heavy Treads Leg Flexi-carbon Leg Wheel Wheel Utility Cargo Storage Unit Device Improved Cooling System Storage Cargo Storage Unit Processor Enhanced Optical Array Hackware Relay Coupler [Hunter] Protection Layered Medium Armor Plating Weapon Heavy Particle Gun Energy Gun Heavy Particle Gun Energy Cannon Heavy Ion Cannon Ballistic Gun Heavy Machine Gun Ballistic Cannon Hypervelocity Mass Driver Launcher Grenade Launcher Special Weapon Remote Datajack Build | -11 -10 -10 -10 -8 -7 -7 -6 -6 -6 -6 -5 -5 ------- Run | Yrd Mat Min Sub Mat Fac Gar Fac Gar Fac DSF Fac Gar Slots Evolved 10 | . . . . 4 2 . 2 . . . 2 . Power 1 | . . . . . . . . . . . 1 . Propulsion 4 | . . . . 1 . . 2 . . . 1 . Utility 4 | . . . . 2 2 . . . . . . . Weapon 1 | . . . . 1 . . . . . . . . Parts Attached 107 | 5 . 2 . 18 1 21 11 21 . 3 25 . Power 13 | 1 . . . 3 . 4 . 2 . . 3 . Engine 5 | 1 . . . 2 . 1 . 1 . . . . Core 4 | . . . . 1 . 3 . . . . . . Reactor 4 | . . . . . . . . 1 . . 3 . Propulsion 25 | 2 . . . 3 . 6 4 3 . 2 5 . Treads 12 | . . . . 2 . . 4 1 . 2 3 . Leg 11 | 2 . . . 1 . 6 . 2 . . . . Wheel 2 | . . . . . . . . . . . 2 . Hover . | . . . . . . . . . . . . . Flight . | . . . . . . . . . . . . . Utility 36 | . . 1 . 4 1 8 2 10 . 1 9 . Device 11 | . . . . 3 1 4 . . . . 3 . Storage 2 | . . 1 . . . 1 . . . . . . Processor 3 | . . . . . . 1 1 . . . 1 . Hackware 18 | . . . . . . 2 . 10 . 1 5 . Protection 2 | . . . . 1 . . 1 . . . . . Artifact . | . . . . . . . . . . . . . Weapon 33 | 2 . 1 . 8 . 3 5 6 . . 8 . Energy Gun 12 | . . . . 6 . 3 2 1 . . . . Energy Cannon 2 | . . . . . . . 1 . . . 1 . Ballistic Gun 10 | 2 . . . 1 . . 1 1 . . 5 . Ballistic Cannon 3 | . . . . 1 . . . 2 . . . . Launcher 1 | . . 1 . . . . . . . . . . Special Weapon 5 | . . . . . . . 1 2 . . 2 . Impact Weapon . | . . . . . . . . . . . . . Slashing Weapon . | . . . . . . . . . . . . . Piercing Weapon . | . . . . . . . . . . . . . Special Melee Weapon . | . . . . . . . . . . . . . Unidentified Prototypes 5 | . . . . 3 . . 2 . . . . . Parts Lost 69 | . . . . 12 . 10 6 15 . . 26 . Power 10 | . . . . 3 . 1 . 2 . . 4 . Propulsion 21 | . . . . 3 . 2 1 5 . . 10 . Utility 11 | . . . . 1 . 2 1 3 . . 4 . Weapon 27 | . . . . 5 . 5 4 5 . . 8 . Highest Loss Streak 6 | . . . . 6 . 3 3 5 . . 5 . To Critical Strikes 2 | . . . . . . 1 . 1 . . . . Average Backups 13 | 1 1 3 4 3 5 5 12 16 25 25 21 4 Power . | . . . . 1 . . 1 . 2 2 . . Propulsion 2 | . . 1 1 . . . 4 2 5 5 3 . Utility 7 | . . . 1 . 1 3 5 11 13 12 9 1 Weapon 2 | 1 1 2 2 1 3 1 1 1 4 4 5 1 Tool/Special . | . . . . . . . . . . . . . Unused Backups 13 | . . . . . . 4 . 1 . . 7 1 Power 1 | . . . . . . . . . . . 1 . Propulsion . | . . . . . . . . . . . . . Utility 7 | . . . . . . 2 . . . . 5 . Weapon 3 | . . . . . . 2 . . . . 1 . Tool/Special 2 | . . . . . . . . 1 . . . 1 Average Slot Usage (%) 67 | . 71 74 85 59 70 80 68 65 80 62 61 17 Engine 2 | . 14 14 14 5 7 1 . 3 . . . . Core 2 | . . . . 1 . 5 6 1 . . . . Reactor 1 | . . . . . . . . . 6 6 8 . Treads 9 | . . . . 4 15 1 14 9 . 8 12 . Leg 7 | . 28 28 28 6 . 16 . 8 26 8 1 . Device 4 | . . . . 3 8 10 6 2 6 1 1 . Storage 6 | . . 3 14 9 7 7 6 6 6 6 4 . Processor 5 | . . . . . . 6 6 6 6 6 8 5 Hackware 7 | . . . . . . 7 9 8 13 13 9 11 Protection 1 | . . . . 8 7 1 2 1 . . . . Energy Gun 6 | . . . . 12 23 19 9 1 6 2 . . Energy Cannon 1 | . . . . . . . 2 1 . . . . Ballistic Gun 4 | . 28 25 15 6 . . 2 5 . . 4 . Special Weapon 1 | . . . . . . . . 3 6 6 2 . Peak Build Rating 101 | 5 5 6 6 22 25 58 79 85 80 86 101 23 Average Rating 58 | 3 5 5 6 12 22 43 67 63 80 73 81 16 On Entrance 33 | . 5 5 6 6 22 25 58 58 80 80 71 16 Avg Prop Armor Cover (%) 7 | . . . . . . 7 . . . . 7 . Naked Turns . | . . . . . . . . . . . . . Heaviest Build 208 | 9 9 13 14 22 23 153 171 171 164 175 208 . Greatest Support 225 | 20 20 20 20 42 42 76 180 180 88 150 225 3 Greatest Overweight (x) 51 | . . . . 5 . 2 2 51 1 1 11 . Average Overweight (x) . | . . . . 1 . . . . 1 1 . . Largest Inventory Capacity 30 | 5 5 5 5 5 5 30 30 30 30 30 30 5 Average Capacity 23 | 5 5 5 5 5 5 7 30 30 30 30 26 5 Most Carried 30 | 5 3 5 4 5 5 15 16 30 30 30 30 5 Average Carried 14 | 1 1 3 4 3 4 5 14 17 30 28 23 4 Final Capacity 30 | 5 5 5 5 5 5 30 30 30 30 30 5 5 Final Carried 30 | 1 3 4 4 5 5 15 15 30 30 29 5 5 Class Distribution -------------------- 35% | Bothacker-Mutant 20% | Scavenger-Mutant 11% | Bothacker-Tank 9% | Mutant 9% | Scavenger-Tank 5% | Scavenger-Skirmisher 4% | Tank Dominant Class ---------------- Mutant | -10/Materials Mutant | -10/Mines Mutant | -10/Subcaves Tank | -8/Materials Tank | -7/Factory Scavenger-Skirmisher | -7/Garrison Scavenger-Mutant | -6/Factory Bothacker-Mutant | -6/Garrison Bothacker-Mutant | -6/Factory Bothacker-Mutant | -6/DSF Bothacker-Mutant | -5/Factory Mutant | -5/Garrison Resources | -11 -10 -10 -10 -8 -7 -7 -6 -6 -6 -6 -5 -5 ----------- Run | Yrd Mat Min Sub Mat Fac Gar Fac Gar Fac DSF Fac Gar Matter Collected 4250 | 147 . 146 156 435 120 339 241 1356 . 148 1162 . Remotely . | . . . . . . . . . . . . . Salvage Created 5763 | . . 34 86 923 120 1565 648 1181 . . 1206 . Parts 263 | . . 4 7 32 4 63 36 52 . . 65 . Haulers Intercepted 2 | . . . . 2 . . . . . . . . Recyclers Shooed 7 | . . . . 2 . . 4 . . . 1 . Parts Field Recycled . | . . . . . . . . . . . . . Retrieved Matter . | . . . . . . . . . . . . . Parts Self-Destructed . | . . . . . . . . . . . . . Prevented . | . . . . . . . . . . . . . Parts Restored . | . . . . . . . . . . . . . Kills | -11 -10 -10 -10 -8 -7 -7 -6 -6 -6 -6 -5 -5 ------- Run | Yrd Mat Min Sub Mat Fac Gar Fac Gar Fac DSF Fac Gar Combat Hostiles Destroyed 86 | . . 5 2 14 2 17 12 10 . . 24 . Guns 51 | . . 2 . 9 2 15 7 4 . . 12 . Cannons 23 | . . . . 4 . . 2 6 . . 11 . AOE 9 | . . 3 2 1 . . 3 . . . . . Classes Destroyed 19 | . . 3 1 10 . 2 2 1 . . . . Worker 7 | . . . . 2 . . 1 . . . 4 . Builder 3 | . . . . . . . 1 . . . 2 . Hauler 2 | . . . . 2 . . . . . . . . Recycler 4 | . . . . 3 . . 1 . . . . . Mechanic 1 | . . . . 1 . . . . . . . . Operator 1 | . . . . 1 . . . . . . . . Watcher 2 | . . . . . . . . 1 . . 1 . Swarmer 24 | . . 3 . 2 . 4 5 3 . . 7 . Grunt 16 | . . . . 7 . 2 3 2 . . 2 . Brawler 1 | . . . . 1 . . . . . . . . Duelist 1 | . . . . 1 . . . . . . . . Sentry 5 | . . . . 2 1 1 . . . . 1 . Demolisher 1 | . . 1 . . . . . . . . . . Specialist 4 | . . . . . . 2 . . . . 2 . Hunter 8 | . . . . 1 1 4 . 1 . . 1 . Programmer 22 | . . . . . . 4 3 4 . . 11 . Behemoth 1 | . . . . . . . 1 . . . . . Subdweller 2 | . . . 2 . . . . . . . . . Assembled 1 | . . 1 . . . . . . . . . . Best Kill Streak 6 | . . 3 2 5 1 3 6 3 . . 6 . Combat Bots Only 6 | . . 3 2 5 1 3 6 3 . . 5 . Max Kills in Single Turn 3 | . . 3 2 2 1 1 3 1 . . 2 . Gunslinging . | . . . . . . . . . . . . . Exploded 3 | . . 3 2 1 . . 3 . . . . . Melee . | . . . . . . . . . . . . . Uniques/NPCs Destroyed . | . . . . . . . . . . . . . Combat | -11 -10 -10 -10 -8 -7 -7 -6 -6 -6 -6 -5 -5 -------- Run | Yrd Mat Min Sub Mat Fac Gar Fac Gar Fac DSF Fac Gar Hostile Shots Fired 1023 | . . 3 . 141 28 147 118 238 . 3 340 5 Missed 278 | . . . . 42 6 52 34 70 . 1 71 2 Hits 745 | . . 3 . 99 22 95 84 168 . 2 269 3 Melee 15 | . . . . 11 . . . 4 . . . . Projectile 730 | . . 3 . 88 22 95 84 164 . 2 269 3 AOE 4 | . . 4 . . . . . . . . . . Critical Strikes 25 | . . . . 4 . 1 5 5 . 1 9 . Part Disruptions 1 | . . . . . . . . . . . 1 . Damage Taken 12639 | . . 105 18 1537 238 1259 1799 2870 . 82 4674 57 Core 2241 | . . 19 9 478 36 153 231 306 . . 952 57 Absorbed by Shields . | . . . . . . . . . . . . . Reduced by Siege Mode 126 | . . . . . . . 126 . . . . . Redirected to Shielding 31 | . . . . 16 3 12 . . . . . . Core Remaining (%) 62 | 100 . . 88 13 . 73 . . . 36 . . Volleys Fired 602 | 1 . 7 2 77 11 126 70 178 . 2 128 . Largest 3 | 2 . 2 1 3 3 3 3 2 . 1 3 . Hottest 207 | 40 . 40 30 183 165 185 170 95 . 94 207 . Shots Fired 1033 | 2 . 13 2 179 33 273 110 209 . 2 210 . Gun 762 | 2 . 12 . 158 33 273 78 89 . 1 116 . Cannon 152 | . . . . 20 . . 24 44 . . 64 . Launcher 4 | . . 1 2 1 . . . . . . . . Special 115 | . . . . . . . 8 76 . 1 30 . Kinetic 342 | 2 . 12 . 77 . . 26 99 . . 126 . Thermal 548 | . . . . 101 33 273 66 20 . 1 54 . Explosive 4 | . . 1 2 1 . . . . . . . . Electromagnetic 24 | . . . . . . . 10 14 . . . . Robot Hit Streak 31 | 2 . 5 . 19 5 31 23 18 . 9 14 . Robot Miss Streak 6 | . . 2 . 6 2 5 3 3 . . 6 . Penetration Max 1 | . . . . . . . . 1 . . 1 . Secondary Targets 6 | . . . . 2 . 2 . . . . 2 . Max Gunslinging Chain 1 | . . . . 1 . 1 . . . . 1 . Capacitor 10 | . . . . . . . . . . . 10 . Shots Hit Robots 629 | 2 . 5 . 108 14 172 65 126 . 2 135 . Core Hits 242 | . . 6 3 56 6 79 22 27 . 1 42 . Critical Kills 13 | . . . . . . . . 9 . . 4 . Critical Parts Destroyed 13 | . . . . . . . 1 11 . . 1 . Critical Strikes 43 | . . . . 3 . 10 4 20 . . 6 . Burn 16 | . . . . 3 . 10 3 . . . . . Destroy 26 | . . . . . . . 1 20 . . 5 . Blast 1 | . . . . . . . . . . . 1 . Melee Attacks . | . . . . . . . . . . . . . Impact . | . . . . . . . . . . . . . Slashing . | . . . . . . . . . . . . . Piercing . | . . . . . . . . . . . . . Sneak Attacks . | . . . . . . . . . . . . . Combat Hostiles . | . . . . . . . . . . . . . Follow-up Attacks . | . . . . . . . . . . . . . Damage Inflicted 13606 | 20 . 175 122 2335 260 3322 1683 1555 . 27 4107 . Guns 9412 | 20 . 60 . 1538 260 3322 1086 888 . 27 2211 . Cannons 3080 | . . . . 486 . . 216 588 . . 1790 . Explosions 1008 | . . 115 122 311 . . 381 79 . . . . Melee . | . . . . . . . . . . . . . Ramming 106 | . . . . . . . . . . . 106 . Kinetic 5037 | 20 . 60 . 876 . . 424 1104 . . 2553 . Thermal 7533 | . . . . 1399 260 3322 884 193 . 27 1448 . Explosive 561 | . . 115 122 60 . . 264 . . . . . Electromagnetic 369 | . . . . . . . 111 258 . . . . Impact . | . . . . . . . . . . . . . Slashing . | . . . . . . . . . . . . . Piercing . | . . . . . . . . . . . . . Highest Corruption 31 | . . . . . . 6 2 7 7 7 31 31 Average Corruption 6 | . . . . . . 5 2 4 7 7 16 31 Corruption Purged . | . . . . . . . . . . . . . Corruption Blocked . | . . . . . . . . . . . . . Effects 209 | . . . . . . 32 23 90 . 7 56 1 Message Errors 53 | . . . . . . 10 10 21 . 2 10 . Matter Fused 54 | . . . . . . 9 6 29 . 1 8 1 Heat Flow Errors 17 | . . . . . . 4 1 9 . . 3 . Energy Discharges 29 | . . . . . . 5 1 13 . 1 9 . Parts Rejected 5 | . . . . . . 1 . . . . 4 . Parts Fused 2 | . . . . . . . 1 . . . 1 . Data Loss (minor) 16 | . . . . . . . 2 7 . 2 5 . Data Loss (major) 8 | . . . . . . . 1 4 . 1 2 . Misfires 10 | . . . . . . 1 1 6 . . 2 . Alerts 5 | . . . . . . 1 . 1 . . 3 . Weapon Failures 10 | . . . . . . 1 . . . . 9 . Overload Shots . | . . . . . . . . . . . . . Overflow Damage 388 | . . . . 81 . . 50 . . . 257 . Projectiles 215 | . . . . . . . 1 . . . 214 . Explosions 130 | . . . . 81 . . 49 . . . . . Melee 43 | . . . . . . . . . . . 43 . Knockbacks 16 | . . . . 10 . . . 5 . . 1 . Impact . | . . . . . . . . . . . . . Kinetic 12 | . . . . 8 . . . 3 . . 1 . Secondary 4 | . . . . 2 . . . 2 . . . . Self-Inflicted Damage 361 | . . 27 19 150 . . 57 108 . . . . Shots 6 | . . 1 1 2 . . 1 1 . . . . Rammed 6 | . . . . . . . . . . . 6 . Targets Rammed 6 | . . . . . . . . . . . 6 . Kicked . | . . . . . . . . . . . . . Crushed . | . . . . . . . . . . . . . Highest Temperature 1491 | . . . . 382 217 224 139 247 . 1491 613 . Average Temperature 144 | . . . . 85 100 44 31 73 . 531 174 . Received Heat Transfer 1842 | . . . . 378 30 96 144 633 . . 534 27 Effects 37 | . . . . 3 . . . . . 25 9 . Shutdowns 7 | . . . . . . . . . . 5 2 . Energy Bleed 7 | . . . . 1 . . . . . 4 2 . Interference 3 | . . . . 2 . . . . . 1 . . Matter Decay 9 | . . . . . . . . . . 7 2 . Short Circuit 2 | . . . . . . . . . . . 2 . Damage (minor) 3 | . . . . . . . . . . 2 1 . Damage (major) 6 | . . . . . . . . . . 6 . . Siege Activations 1 | . . . . . . . 1 . . . . . Total Turns 33 | . . . . . . . 33 . . . . . Longest Duration 33 | . . . . . . . 33 . . . . . Martial Activations . | . . . . . . . . . . . . . Shielding Activations . | . . . . . . . . . . . . . Robots Disrupted . | . . . . . . . . . . . . . Combat Hostiles . | . . . . . . . . . . . . . Robots Corrupted 1 | . . . . . . . . . . . 1 . Combat Hostiles 1 | . . . . . . . . . . . 1 . Parts Fried 1 | . . . . . . . . 1 . . . . Impact Corruptions 2 | . . . . . . . . . . . 2 . Robots Melted 3 | . . . . . . 3 . . . . . . Combat Hostiles 2 | . . . . . . 2 . . . . . . Parts Melted 27 | . . . . 3 . 21 2 . . . 1 . Heat Transferred 13106 | . . . . 2518 518 6973 1604 198 . 37 1258 . Parts Sabotaged . | . . . . . . . . . . . . . Parts Stolen . | . . . . . . . . . . . . . Parts Stripped . | . . . . . . . . . . . . . Power Chain Reactions 2 | . . . . . . . 1 1 . . . . Alert | -11 -10 -10 -10 -8 -7 -7 -6 -6 -6 -6 -5 -5 ------- Run | Yrd Mat Min Sub Mat Fac Gar Fac Gar Fac DSF Fac Gar Maximum Alert Level 5 | . . . . . . 3 2 5 4 3 2 1 Low Security (%) 24 | 100 100 100 . 100 100 16 41 . . . 17 . Level 1 35 | . . . . . . 35 54 22 . . 71 100 Level 2 16 | . . . . . . 21 4 30 . . 10 . Level 3 10 | . . . . . . 26 . 11 . 100 . . Level 4 5 | . . . . . . . . 14 100 . . . Level 5 7 | . . . . . . . . 21 . . . . High Security . | . . . . . . . . . . . . . Max Security . | . . . . . . . . . . . . . Sterilizations 1 | . . . . . . . . . . 1 . . Peak Influence 2223 | . . 88 . 131 79 848 445 2223 1166 809 493 336 Initial 1166 | . . . . . 38 44 445 210 1166 809 404 336 Average 514 | . . 46 . 67 51 470 194 938 1165 782 292 336 Influence Increases 5516 | . . 108 . 471 75 904 536 2483 . 2 937 . Destroy 0b10 Robot/C 1840 | . . 80 . 280 40 340 280 340 . . 480 . Destroy 0b10 Robot/NC 175 | . . . . 45 . 40 20 35 . . 35 . Destroy Leader 348 | . . 20 . 64 20 30 72 30 . . 112 . Allied During Kill 166 | . . . . . . . 4 155 . . 7 . Successful Hack 28 | . . . . . 14 14 . . . . . . Disable Machine 255 | . . . . 45 . . 120 . . . 90 . Anti-Garrison Action 2200 | . . . . . . 400 . 1800 . . . . Destroy Structure 264 | . . 8 . 22 1 50 40 93 . 2 48 . Lose Combat Pursuer 240 | . . . . 15 . 30 . 30 . . 165 . Influence Decreases 5180 | . . 108 . 386 97 119 1083 561 1067 387 1227 145 Entered New Map 2476 | . . . . . 47 19 403 91 1057 347 367 145 Time Decay 1652 | . . 108 . 266 50 . 638 . 10 . 580 . Lost Part 672 | . . . . 120 . 100 42 150 . . 260 . Lost Ally 380 | . . . . . . . . 320 . 40 20 . Squads Dispatched 15 | . . . . 2 1 . 4 . . 2 6 . Investigation . | . . . . . . . . . . . . . Extermination 7 | . . . . . . . 3 . . . 4 . Reinforcement 8 | . . . . 2 1 . 1 . . 2 2 . Assault . | . . . . . . . . . . . . . Garrison . | . . . . . . . . . . . . . Intercept . | . . . . . . . . . . . . . Searches Triggered . | . . . . . . . . . . . . . Construction Impeded 1 | . . . . . . . 1 . . . . . Haulers Reinforced . | . . . . . . . . . . . . . Active Scanning Responses . | . . . . . . . . . . . . . Cargo Convoy Interrupts 1 | . . . . . . . . . . . 1 . Alert ID Control Effect 27 | . . . . . . . . 12 . 9 6 . Stealth | -11 -10 -10 -10 -8 -7 -7 -6 -6 -6 -6 -5 -5 --------- Run | Yrd Mat Min Sub Mat Fac Gar Fac Gar Fac DSF Fac Gar Distress Signals 7 | . . . . 1 . . 2 . . . 4 . Communications Jammed 31 | . . . . . . . . . . . 31 . Distress Signals 31 | . . . . . . . . . . . 31 . Times Spotted 182 | . . 6 2 28 2 17 21 38 . 6 58 4 Peak Tracking Total 8 | . . 2 2 8 1 4 4 5 . 3 7 4 Tactical Retreats 11 | . . . . 1 . 1 . 2 . . 7 . Traps | -11 -10 -10 -10 -8 -7 -7 -6 -6 -6 -6 -5 -5 ------- Run | Yrd Mat Min Sub Mat Fac Gar Fac Gar Fac DSF Fac Gar Traps Triggered 12 | . . . . . . 3 1 4 . 1 3 . Indirectly . | . . . . . . . . . . . . . Trap Hack Attempts . | . . . . . . . . . . . . . Triggered . | . . . . . . . . . . . . . Disarmed . | . . . . . . . . . . . . . Reprogrammed . | . . . . . . . . . . . . . Reused . | . . . . . . . . . . . . . Traps Extracted . | . . . . . . . . . . . . . Installed . | . . . . . . . . . . . . . Triggered . | . . . . . . . . . . . . . Machines | -11 -10 -10 -10 -8 -7 -7 -6 -6 -6 -6 -5 -5 ---------- Run | Yrd Mat Min Sub Mat Fac Gar Fac Gar Fac DSF Fac Gar Machines Disabled 31 | . . . . 3 . 7 8 7 . . 6 . Max in Single Turn 2 | . . . . 1 . 2 2 2 . . 1 . Garrison Relay 9 | . . . . . . 4 . 5 . . . . Phase Generator 2 | . . . . . . 1 . 1 . . . . Machines Repaired . | . . . . . . . . . . . . . Machines Dismantled . | . . . . . . . . . . . . . Machines Sabotaged . | . . . . . . . . . . . . . Overloaded Fab Kills . | . . . . . . . . . . . . . Hacking | -11 -10 -10 -10 -8 -7 -7 -6 -6 -6 -6 -5 -5 --------- Run | Yrd Mat Min Sub Mat Fac Gar Fac Gar Fac DSF Fac Gar Machines Accessed 8 | . . . . . 1 2 2 . 1 . 2 . Terminals 4 | . . . . . . 2 1 . 1 . . . Fabricators 1 | . . . . . . . . . . . 1 . Repair Stations . | . . . . . . . . . . . . . Recycling Units . | . . . . . . . . . . . . . Scanalyzers . | . . . . . . . . . . . . . Garrison Access 3 | . . . . . 1 . 1 . . . 1 . Total Hacks 11 | . . . . . 2 4 2 . 1 . 2 . Successful 6 | . . . . . 1 1 1 . 1 . 2 . Failed 5 | . . . . . 1 3 1 . . . . . Catastrophic . | . . . . . . . . . . . . . Database Lockouts . | . . . . . . . . . . . . . Manual . | . . . . . . . . . . . . . Terminals 6 | . . . . . . 4 1 . 1 . . . Fabricators 1 | . . . . . . . . . . . 1 . Repair Stations . | . . . . . . . . . . . . . Recycling Units . | . . . . . . . . . . . . . Scanalyzers . | . . . . . . . . . . . . . Garrison Access 4 | . . . . . 2 . 1 . . . 1 . Terminal Hacks 2 | . . . . . . 1 . . 1 . . . Open DSF 1 | . . . . . . . . . 1 . . . Patrol Navigation 1 | . . . . . . 1 . . . . . . Fabricator Hacks 1 | . . . . . . . . . . . 1 . Network Status 1 | . . . . . . . . . . . 1 . Repair Station Hacks . | . . . . . . . . . . . . . Recycling Unit Hacks . | . . . . . . . . . . . . . Scanalyzer . | . . . . . . . . . . . . . Garrison Access Hacks 3 | . . . . . 1 . 1 . . . 1 . Unlock Access 3 | . . . . . 1 . 1 . . . 1 . Unauthorized Hacks . | . . . . . . . . . . . . . Terminals . | . . . . . . . . . . . . . Fabricators . | . . . . . . . . . . . . . Repair Stations . | . . . . . . . . . . . . . Recycling Units . | . . . . . . . . . . . . . Scanalyzers . | . . . . . . . . . . . . . Garrison Access . | . . . . . . . . . . . . . Data Cores Recovered . | . . . . . . . . . . . . . Used . | . . . . . . . . . . . . . Hacking Detections 5 | . . . . . 1 2 1 . . . 1 . Full Trace Events 1 | . . . . . . 1 . . . . . . Feedback Events . | . . . . . . . . . . . . . Feedback Blocked . | . . . . . . . . . . . . . Robot Schematics Acquired . | . . . . . . . . . . . . . Robots Built . | . . . . . . . . . . . . . Authchips . | . . . . . . . . . . . . . Time . | . . . . . . . . . . . . . Total Robot Build Rating . | . . . . . . . . . . . . . Part Schematics Acquired . | . . . . . . . . . . . . . Parts Built . | . . . . . . . . . . . . . Authchips . | . . . . . . . . . . . . . Time . | . . . . . . . . . . . . . Total Part Build Rating . | . . . . . . . . . . . . . Part Studies Acquired . | . . . . . . . . . . . . . Parts Repaired . | . . . . . . . . . . . . . Time . | . . . . . . . . . . . . . Parts Recycled . | . . . . . . . . . . . . . Recycled Matter . | . . . . . . . . . . . . . Retrieved Matter . | . . . . . . . . . . . . . Retrieved Components . | . . . . . . . . . . . . . Parts Scanalyzed . | . . . . . . . . . . . . . Part Schematics Acquired . | . . . . . . . . . . . . . Parts Damaged . | . . . . . . . . . . . . . Bothacking | -11 -10 -10 -10 -8 -7 -7 -6 -6 -6 -6 -5 -5 ------------ Run | Yrd Mat Min Sub Mat Fac Gar Fac Gar Fac DSF Fac Gar Used RIF Installer 3 | . . . . . . 2 . 1 . . . . Signal Jammer 1 | . . . . . . . . 1 . . . . Alert ID Control 1 | . . . . . . 1 . . . . . . Robots Hacked 32 | . . . . . . . 2 16 . 1 13 . Non-combat 8 | . . . . . . . 1 . . . 7 . Combat 24 | . . . . . . . 1 16 . 1 6 . Robot Hacks Applied 48 | . . . . . . . 3 24 . 1 20 . parse_system 6 | . . . . . . . 1 3 . . 2 . generate_echo 1 | . . . . . . . . . . . 1 . find_chute 1 | . . . . . . . . . . . 1 . ignore_parts 1 | . . . . . . . . . . . 1 . map_route 4 | . . . . . . . . . . . 4 . mark_security 1 | . . . . . . . . . . . 1 . find_shortcuts 3 | . . . . . . . . 3 . . . . show_paths 1 | . . . . . . . . 1 . . . . link_fov 2 | . . . . . . . . . . . 2 . reboot_propulsion 1 | . . . . . . . . 1 . . . . scatter_targeting 2 | . . . . . . . . 1 . . 1 . broadcast_data 1 | . . . . . . . . 1 . . . . overload_power 3 | . . . . . . . . 1 . . 2 . amplify_resonance 2 | . . . . . . . . 1 . . 1 . reboot_system 3 | . . . . . . . 1 1 . . 1 . go_dormant 3 | . . . . . . . . 2 . . 1 . overwrite_iff 1 | . . . . . . . . . . . 1 . formatsys_high 12 | . . . . . . . 1 9 . 1 1 . Relay Couplers Released 48 | . . . . . . 21 . 23 . . 4 . Machine Destruction 41 | . . . . . . 18 . 23 . . . . Programmers 7 | . . . . . . 3 . . . . 4 . Attached 16 | . . . . . . 2 . 10 . 1 3 . Fabnet Peak Effective % . | . . . . . . . . . . . . . Robots Rewired 16 | . . . . . . . . 16 . . . . Allies Hacked . | . . . . . . . . . . . . . Hacks Repelled . | . . . . . . . . . . . . . Allies | -11 -10 -10 -10 -8 -7 -7 -6 -6 -6 -6 -5 -5 -------- Run | Yrd Mat Min Sub Mat Fac Gar Fac Gar Fac DSF Fac Gar Total Allies 29 | . . . . . . . 1 25 . 1 2 . Largest Group 14 | . . . . . . . 1 14 8 8 1 . Highest-Rated Group 466 | . . . . . . . 41 466 283 332 41 . Highest-Rated Ally 90 | . . . . . . . 41 46 41 90 41 . Total Orders 11 | . . . . . . . . 10 . . 1 . STAY 5 | . . . . . . . . 4 . . 1 . ROAM 2 | . . . . . . . . 2 . . . . FOLLOW 4 | . . . . . . . . 4 . . . . Ally Attacks 151 | . . . . . . . 6 106 . 23 16 . Total Damage 5363 | . . . . . . . 201 3579 . 1238 345 . Kills 38 | . . . . . . . 3 20 . 9 6 . Allies Corrupted . | . . . . . . . . . . . . . Allies Melted . | . . . . . . . . . . . . . Intel | -11 -10 -10 -10 -8 -7 -7 -6 -6 -6 -6 -5 -5 ------- Run | Yrd Mat Min Sub Mat Fac Gar Fac Gar Fac DSF Fac Gar Active Infowar (turns) 9993 | . . . . . . 1551 2380 4001 21 294 1746 . Optics 9993 | . . . . . . 1551 2380 4001 21 294 1746 . Robot Analysis Total . | . . . . . . . . . . . . . Derelict Logs Recovered 1 | . . . 1 . . . . . . . . . Drone Launches . | . . . . . . . . . . . . . Drone Recoveries . | . . . . . . . . . . . . . Exploration | -11 -10 -10 -10 -8 -7 -7 -6 -6 -6 -6 -5 -5 ------------- Run | Yrd Mat Min Sub Mat Fac Gar Fac Gar Fac DSF Fac Gar Turns Passed 11528 | 56 66 239 142 735 118 1636 2381 4001 21 319 1799 15 Spaces Moved 4780 | 47 54 156 114 288 33 805 948 1461 12 128 717 17 Core 213 | 19 . . . 104 . . . 1 . . 72 17 Treads 2747 | . . . . 88 33 78 948 957 . 90 553 . Legs 1767 | 28 54 156 114 96 . 727 . 503 12 38 39 . Wheels 53 | . . . . . . . . . . . 53 . Hover . | . . . . . . . . . . . . . Flight . | . . . . . . . . . . . . . Fastest Speed 50 | 50 120 120 120 100 152 110 160 160 187 187 50 50 Average Speed 182 | 91 120 120 120 158 152 130 214 217 187 224 165 50 Slowest Speed 2600 | 120 120 120 120 300 152 253 320 2600 187 240 600 50 Overloaded Moves . | . . . . . . . . . . . . . Propulsion Burnouts . | . . . . . . . . . . . . . Robots Hopped . | . . . . . . . . . . . . . Potential Cave-ins . | . . . . . . . . . . . . . Cave-ins Triggered . | . . . . . . . . . . . . . Exploration Rate (%) 32 | 3 15 44 9 26 1 77 29 98 1 81 27 5 Regions Visited 12 Branch Regions 2 Pre-discovered Areas 2 | . . . 2 . . . . . . . . . Known Exits Taken 4 | . . . . . 1 . 1 . 1 . 1 . Unknown Exits Taken 5 | 1 1 1 1 1 . . . . . . . . Scrap Searched 1 | . . 1 . . . . . . . . . . Spaces Dug . | . . . . . . . . . . . . . Terrain Destroyed 236 | . . 8 9 21 . 51 36 84 . . 27 . Melee . | . . . . . . . . . . . . . Projectile 31 | . . . . . . . 2 2 . . 27 . AOE 205 | . . 8 9 21 . 51 34 82 . . . . Terrain Rammed . | . . . . . . . . . . . . . Walls Destroyed . | . . . . . . . . . . . . . Machines Disabled . | . . . . . . . . . . . . . Actions | -11 -10 -10 -10 -8 -7 -7 -6 -6 -6 -6 -5 -5 --------- Run | Yrd Mat Min Sub Mat Fac Gar Fac Gar Fac DSF Fac Gar Total 6741 | 57 55 194 116 421 76 1150 1197 2125 11 163 1152 24 Wait 992 | . . 27 . 12 30 139 143 401 . 14 221 5 Move 4768 | 46 53 155 113 287 32 804 947 1459 11 127 717 17 Hop . | . . . . . . . . . . . . . Pick Up 115 | 5 2 2 . 12 1 21 9 39 . 3 21 . Fast Attach 24 | 1 . . . 4 1 14 . 2 . . 2 . Attach 113 | 4 . 1 . 18 . 7 15 26 . 4 37 1 Detach 31 | . . . . 7 . 1 8 4 . 2 8 1 Swap 24 | . . 2 1 4 . 5 3 2 . . 7 . Drop 39 | . . . . . 1 20 2 6 . 6 4 . Fire 602 | 1 . 7 2 77 11 126 70 178 . 2 128 . Melee . | . . . . . . . . . . . . . Ram 2 | . . . . . . . . . . . 2 . Kick . | . . . . . . . . . . . . . Crush 4 | . . . . . . . . . . . 4 . Escape Stasis 18 | . . . . . . 9 . 4 . 5 . . Rewire 9 | . . . . . . 4 . 4 . . 1 . Trap . | . . . . . . . . . . . . . Miscellaneous . | . . . . . . . . . . . . . Route ------- -11/Scrapyard -10/Materials -10/Mines -10/Subcaves -8/Materials -7/Factory -7/Garrison (discovered 2 exits: *Fac x2) -6/Factory (discovered 2 exits: *Fac / Gar) -6/Garrison (discovered 3 exits: *Fac x3) -6/Factory -6/DSF -5/Factory (discovered 2 exits: [*Fac] / Gar) -5/Garrison History --------- Turn | Location | Event 10 | -11/Scrapyard | Discovered new exit (range 16) 57 | -11/Scrapyard | Entered Materials 109 | -10/Materials | Discovered new exit (range 12) 123 | -10/Materials | Entered Mines 124 | -10/Mines | Assembled infested the area 129 | -10/Mines | Assisted by a Guerilla fighting off Assembled 300 | -10/Mines | Build established: Mutant 360 | -10/Mines | Discovered new exit (range 3) 362 | -10/Mines | Entered Subcaves 363 | -10/Subcaves | Approached by a straggling Scientist 375 | -10/Subcaves | Ambushed by Subdwellers from Twisted Machinery 424 | -10/Subcaves | Learned location of Zion (-6) 495 | -10/Subcaves | Discovered new exit (range 8) 499 | -10/Subcaves | Met a Zionite searching for "candidates" 504 | -10/Subcaves | Entered Materials 504 | -8/Materials | Evolved 4 slots: Propulsion x1, Utility x2, Weapon x1 721 | -8/Materials | Lost 6 parts (1p2n3w) 857 | -8/Materials | Core integrity fell below 50% 899 | -8/Materials | Discovered new exit (range 8) 980 | -8/Materials | Core integrity fell below 20% 1025 | -8/Materials | Lost 4 parts (1p1u2w) 1239 | -8/Materials | Entered Factory 1239 | -7/Factory | Evolved 2 slots: Utility x2 1352 | -7/Factory | Identified exit to Garrison 1357 | -7/Factory | Entered Garrison 1419 | -7/Garrison | Triggered checkpoint 1541 | -7/Garrison | Garrison Relay disabled 1677 | -7/Garrison | Triggered checkpoint 1734 | -7/Garrison | Lost 3 parts (1u2w) 1761 | -7/Garrison | Triggered checkpoint 1787 | -7/Garrison | Triggered checkpoint 1807 | -7/Garrison | Phase Generator disabled 1813 | -7/Garrison | Met a derelict Sapper fleeing the area 1868 | -7/Garrison | Discovered new exit (range 5) 1952 | -7/Garrison | Installed Relay Interface Framework 1955 | -7/Garrison | Lost 3 parts (1p1n1w) 1987 | -7/Garrison | Garrison Relay disabled 2028 | -7/Garrison | Build established: Scavenger-Skirmisher 2065 | -7/Garrison | Expanded RIF knowledge: Alert ID Control 2203 | -7/Garrison | Garrison Relay disabled 2227 | -7/Garrison | Discovered new exit (range 12) 2362 | -7/Garrison | Garrison Relay disabled 2371 | -7/Garrison | Triggered checkpoint 2680 | -7/Garrison | Build established: Scavenger-Mutant 2993 | -7/Garrison | Entered Factory 2993 | -6/Factory | Evolved 2 slots: Propulsion x2 3970 | -6/Factory | Spotted B-75 Beast 4397 | -6/Factory | Destroyed B-75 Beast 4429 | -6/Factory | Lost 3 parts (1u2w) 4872 | -6/Factory | Build established: Scavenger-Tank 5215 | -6/Factory | Discovered new exit (range 16) 5355 | -6/Factory | Build established: Scavenger-Mutant 5362 | -6/Factory | Identified exit to Garrison 5374 | -6/Factory | Entered Garrison 5374 | -6/Garrison | Accompanied by 1 ally 5415 | -6/Garrison | Triggered checkpoint 5441 | -6/Garrison | Garrison Relay disabled 5636 | -6/Garrison | Triggered checkpoint 5971 | -6/Garrison | Build established: Bothacker-Tank 6164 | -6/Garrison | Triggered checkpoint 6192 | -6/Garrison | Garrison Relay disabled 6294 | -6/Garrison | Triggered checkpoint 6445 | -6/Garrison | Discovered new exit (range 8) 6486 | -6/Garrison | Triggered checkpoint 6512 | -6/Garrison | Triggered checkpoint 6525 | -6/Garrison | Triggered checkpoint 6540 | -6/Garrison | Garrison Relay disabled 6589 | -6/Garrison | Lost 5 parts (1p2u2w) 6687 | -6/Garrison | Build established: Bothacker-Mutant 7140 | -6/Garrison | Lost 5 allies 7152 | -6/Garrison | Garrison Relay disabled 7367 | -6/Garrison | Expanded RIF knowledge: Signal Jamming 7725 | -6/Garrison | Phase Generator disabled 7992 | -6/Garrison | Triggered checkpoint 8053 | -6/Garrison | Build established: Bothacker-Tank 8067 | -6/Garrison | Core integrity fell below 50% 8134 | -6/Garrison | Triggered checkpoint 8137 | -6/Garrison | Spotted B-75 Beast 8171 | -6/Garrison | Lost 3 parts (2n1w) 8224 | -6/Garrison | Allies destroyed B-75 Beast 8227 | -6/Garrison | Discovered new exit (range 13) 8243 | -6/Garrison | Lost 6 allies 8387 | -6/Garrison | Garrison Relay disabled 8419 | -6/Garrison | P-60 Hacker assimilated allied Guardian 5c 8446 | -6/Garrison | Build established: Bothacker-Mutant 8497 | -6/Garrison | Found Quantum Capacitor 9323 | -6/Garrison | Discovered new exit (range 12) 9375 | -6/Garrison | Entered Factory 9375 | -6/Factory | Accompanied by 8 allies 9396 | -6/Factory | Identified exit to DSF 9396 | -6/Factory | Entered DSF 9396 | -6/DSF | Accompanied by 8 allies 9442 | -6/DSF | Additional patrols routed to DSF 9542 | -6/DSF | Discovered new exit (range 15) 9576 | -6/DSF | Sterilization system engaged 9596 | -6/DSF | Ambient heat levels rising (+10) 9611 | -6/DSF | Ambient heat levels rising (+10) 9626 | -6/DSF | Ambient heat levels rising (+10) 9641 | -6/DSF | Ambient heat levels rising (+10) 9656 | -6/DSF | Ambient heat levels rising (+10) 9671 | -6/DSF | Ambient heat levels rising (+10) 9686 | -6/DSF | Ambient heat levels rising (+10) 9701 | -6/DSF | Ambient heat levels rising (+10) 9715 | -6/DSF | Entered Factory 9715 | -5/Factory | Evolved 2 slots: Power x1, Propulsion x1 9739 | -5/Factory | Lost 7 allies 9885 | -5/Factory | Spotted B-75 Beast 10234 | -5/Factory | Discovered new exit (range 18) 10549 | -5/Factory | Cargo convoy interrupted 10551 | -5/Factory | System corruption reached 10% 11049 | -5/Factory | Lost 4 parts (2n2w) 11093 | -5/Factory | Core integrity fell below 50% 11245 | -5/Factory | Lost 4 parts (2n1u1w) 11318 | -5/Factory | Lost 4 parts (1n1u2w) 11429 | -5/Factory | Lost 3 parts (1n1u1w) 11467 | -5/Factory | Core integrity fell below 20% 11490 | -5/Factory | System corruption reached 30% 11514 | -5/Factory | Identified exit to Garrison 11514 | -5/Factory | Entered Garrison 11520 | -5/Garrison | Lost 5 parts (1p1n1u2w) 11529 | -5/Garrison | Destroyed by G-50 Soldier with Heavy Laser Last Messages --------------- Slammed into P-70 Sage. K-01 Serf collects debris. U-05 Engineer builds a Wall. Acquired Imp. Heat Sink. System corrupted: IFF burst signal emitted. Imp. Heat Sink destroyed. Detecting nearby Garrison Access. O-24 Administrator: "IFF HANDSHAKE FAILED. SECURING TERMINAL." System corrupted: Matter fused (-8). ALERT: Hostiles spotted, dispatching reinforcements to Terminal F013. Slug penetrates Garrison Access. Connecting with Garrison Access... >>Unlock Access door unlocked. EXIT=UNLOCKED: GARRISON LOCATION=GARRISON GOAL=ESCAPE System corrupted: Matter fused (-9). Map ----- +----------------------------------------------------+ | ???????????????????????????????????????????? | | ???????????????????????????????????????????? | | ???????????????????????????????????????????? | | ???????????????????????????????????????????? | | ???????????????????????????????????????????? | | ???????????????????????????????????????????? | | ???????????????????????????????????????????? | | ???????????????????????????????????????????? | | ???????????????????????????????????????????? | | ???????????????????????????????????????????? | | ???????????????????????????????????????????? | | ???????????????????????????????????????????? | | ???????????????????????????????????????????? | | ???????????????????????????????????????????? | | ???????????????????????????????????????????? | | ???????????????????????????????????????????? | | ???????????????????????????????????????????? | | ???????????????????????????????????????????? | | ???????????????????????????????????????????? | | ???????????????????????????????????????????? | | ???????????????????????????????????????????? | | ???????????????????????????????????????????? | | ???????????????????????????????????????????? | | ???????????????????????????????????????????? | | ????????????????###################????????? | | ?????????? @ #????????? | | ?????????? gg #????????? | | ?????????? g g #????????? | | ???????????############## #### #????????? | | ????????????????????????# #??# #????????? | | ????????????????????????# #??# #????????? | | ???????????????????????? #??# #????????? | | ??????????????????????? #??# #????????? | | ??????????????????????######??# #????????? | | ??????????????????????????????# #????????? | | ??????????????????????????????# #????????? | | ??????????????????????????????# #????????? | | ??????????????????????????????# #????????? | | ??????????????????????????????# #????????? | | ??????????????????????????????#####????????? | | ???????????????????????????????????????????? | | ???????????????????????????????????????????? | | ???????????????????????????????????????????? | | ???????????????????????????????????????????? | | ???????????????????????????????????????????? | | ???????????????????????????????????????????? | | ???????????????????????????????????????????? | | ???????????????????????????????????????????? | | ???????????????????????????????????????????? | | ???????????????????????????????????????????? | +----------------------------------------------------+ Best States ------------- Heat Dissipation 88 Energy Generation 41 Energy Capacity 405 Matter Stores 500 Matter Capacity 500 Sight Range 22 Terrain Scan Density 10 Armor Coverage 225 Utility Shielding 33 Evasion (%) 55 Targeting Accuracy 6 Recoil Reduction 6 Relay Coupler Types 3 Relay Coupler Value 61 Authchip Count 5 Item Schematics ----------------- None Robot Schematics ------------------ None Fabricated ------------ Nothing Repaired ---------- Nothing Studied --------- None Alien Tech Used ----------------- None Achievements -------------- None Challenges ------------ None Game ------ Seed TowerReflexMegashotty Manual? 0 Play Time 01:11:28 Cumulative 367.3 hours Start 2026.07.09 @ 12:34:38 End 2026.07.09 @ 23:33:13 Sessions 1 Manual Loads 0 Difficulty Rogue Special Mode None Game No. 906 Rogue 904 Adventurer 2 Explorer 0 Win Type - Total 1 Types 1/0/0/0/0/0/0/0/0/0 Lore% 51 Gallery% 67 Achievement% 53 Wizard Run 0 Options --------- Layout 2 ASCII 0 Keyboard 0 Movement Mouse Keybinds 0 Fullscreen 1 Font 24/Smallcaps Map View 50x44 Zoom Use 0% Tactical HUD 0 Map Filters NONE Filters NONE Steam 1 RUN: 5e1a50bf-7588-4b98-ae32-326b2a3b3ea7